fUSD/lending_fUSD_20240901
["ID","MTS","AMOUNT","RATE_DAILY","PERIOD"]
[336797100,1725163832075,-150.0,0.00012775,2]
[336797101,1725163832084,-150.0,0.00012777,2]
[336797102,1725163832093,-150.0,0.00012778,2]
[336797103,1725163832102,-150.0,0.00012782,2]
[336797104,1725163832111,-150.0,0.0001279,2]
[336797105,1725163832121,-150.0,0.00012791,2]
[336797107,1725163832130,-150.0,0.00012797,2]
[336797109,1725163832139,-150.0,0.00012798,2]
[336797111,1725163832149,-500.0,0.00012799,2]
[336797112,1725163832159,-500.0,0.00012799,2]
[336797113,1725163832168,-500.0,0.00012799,2]
[336797114,1725163832180,-500.0,0.00012799,2]
[336797115,1725163832190,-500.0,0.00012799,2]
[336797116,1725163832199,-467.30800991,0.00012799,2]
[336797117,1725163832209,-500.0,0.00012799,2]
[336797118,1725163832218,-393.77421558,0.00012799,2]
[336797119,1725163832227,-500.0,0.00012799,2]
[336797120,1725163832237,-500.0,0.00012799,2]
[336797121,1725163832246,-100000.0,0.000128,2]
[336797122,1725163832255,-500.0,0.000128,2]
[336797123,1725163832264,-328.44997616,0.000128,2]
[336797124,1725163832273,-652.494,0.000128,2]
[336797125,1725163832282,-150.0,0.00012802,2]
[336797126,1725163832292,-150.0,0.00012806,2]
[336797127,1725163832301,-150.0,0.00012806,2]
[336797128,1725163832310,-150.0,0.00012808,2]
[336797129,1725163832320,-150.0,0.00012809,2]
[336797130,1725163832330,-150.0,0.0001281,2]
[336797131,1725163832340,-150.0,0.00012811,2]
[336797132,1725163832349,-150.0,0.00012811,2]
[336797133,1725163832358,-150.0,0.00012818,2]
[336797134,1725163832368,-150.0,0.0001282,2]
[336797135,1725163832377,-150.0,0.00012826,2]
[336797136,1725163832386,-150.0,0.00012828,2]
[336797137,1725163832395,-150.0,0.00012831,2]
[336797138,1725163832404,-150.0,0.00012831,2]
[336797139,1725163832414,-150.0,0.00012832,2]
[336797140,1725163832423,-150.0,0.00012832,2]
[336797141,1725163832432,-150.0,0.00012834,2]
[336797142,1725163832443,-150.0,0.0001284,2]
[336797143,1725163832453,-150.0,0.00012842,2]
[336797144,1725163832463,-150.0,0.00012843,2]
[336797145,1725163832473,-150.0,0.00012847,2]
[336797146,1725163832482,-150.0,0.0001285,2]
[336797147,1725163832492,-150.0,0.00012851,2]
[336797148,1725163832506,-150.0,0.00012851,2]
[336797149,1725163832516,-150.0,0.00012855,2]
[336797150,1725163832525,-150.0,0.00012855,2]
[336797151,1725163832534,-150.0,0.00012858,2]
[336797152,1725163832545,-150.0,0.00012859,2]
[336797153,1725163832554,-150.0,0.00012865,2]
[336797154,1725163832563,-150.0,0.00012869,2]
[336797155,1725163832572,-1646.06118,0.0001287,2]
[336797156,1725163832583,-150.0,0.00012875,2]
[336797157,1725163832594,-150.0,0.00012876,2]
[336797158,1725163832605,-150.0,0.00012877,2]
[336797159,1725163832614,-150.0,0.00012877,2]
[336797160,1725163832624,-150.0,0.0001288,2]
[336797161,1725163832633,-150.0,0.00012885,2]
[336797162,1725163832643,-152.31,0.0001289,2]
[336797163,1725163832651,-150.0,0.00012891,2]
[336797164,1725163832660,-212.5945,0.00012896,2]
[336797165,1725163832670,-150.0,0.00012896,2]
[336797166,1725163832681,-500.0,0.00012896,2]
[336797167,1725163832691,-150.0,0.00012899,2]
[336797168,1725163832701,-2749.6354,0.000129,2]
[336797169,1725163832710,-36676.7761668,0.000129,2]
[336797170,1725163832723,-9835.58180308,0.000129,2]
[336797171,1725163832735,-1230.01759857,0.000129,2]
[336797172,1725163832747,-2514.72665498,0.000129,2]
[336797173,1725163832758,-22916.49869489,0.000129,2]
[336797174,1725163832770,-3586.11267,0.000129,2]
[336797175,1725163832781,-1679.06194262,0.000129,2]
[336797176,1725163832794,-2850.4465138,0.000129,2]
[336797177,1725163832806,-1415.43626018,0.000129,2]
[336797178,1725163832818,-2722.12504729,0.000129,2]
[336797179,1725163832844,-1306.0,0.000129,2]
[336797180,1725163832864,-158267.21664779,0.000129,2]
[336797181,1725163832874,-168.94258975,0.000129,2]
[336797182,1725163832883,-1000.0,0.000129,2]
[336797183,1725163832892,-7500.0,0.000129,2]
[336797184,1725163832902,-150.0,0.00012902,2]
[336797185,1725163832911,-150.0,0.00012904,2]
[336797186,1725163832922,-150.0,0.00012904,2]
[336797187,1725163832931,-150.0,0.00012904,2]
[336797188,1725163832941,-150.0,0.00012905,2]
[336797189,1725163832950,-150.0,0.00012906,2]
[336797190,1725163832960,-150.0,0.00012906,2]
[336797191,1725163832971,-150.0,0.00012908,2]
[336797192,1725163832980,-150.0,0.00012914,2]
[336797193,1725163832990,-150.0,0.00012918,2]
[336797194,1725163833000,-150.0,0.00012919,2]
[336797195,1725163833010,-150.0,0.00012923,2]
[336797196,1725163833019,-150.0,0.00012928,2]
[336797197,1725163833029,-150.0,0.0001293,2]
[336797198,1725163833039,-150.0,0.00012932,2]
[336797199,1725163833049,-150.0,0.00012934,2]
[336797200,1725163833059,-150.0,0.00012938,2]
[336797201,1725163833069,-150.0,0.00012945,2]
[336797202,1725163833078,-150.0,0.00012949,2]
[336797203,1725163833089,-150.0,0.00012951,2]
[336797204,1725163833099,-150.0,0.00012952,2]
[336797205,1725163833109,-150.0,0.00012953,2]
[336797206,1725163833119,-150.0,0.00012953,2]
[336797207,1725163833129,-150.0,0.00012954,2]
[336797208,1725163833139,-150.0,0.00012955,2]
[336797209,1725163833149,-150.0,0.00012956,2]
[336797210,1725163833159,-150.0,0.00012961,2]
[336797211,1725163833168,-150.0,0.00012964,2]
[336797212,1725163833177,-150.0,0.00012965,2]
[336797213,1725163833187,-150.0,0.00012966,2]
[336797214,1725163833198,-150.0,0.00012966,2]
[336797215,1725163833208,-500.0,0.00012973,2]
[336797216,1725163833218,-500.0,0.00012973,2]
[336797217,1725163833228,-150.0,0.00012973,2]
[336797218,1725163833238,-150.0,0.00012983,2]
[336797219,1725163833247,-150.0,0.00012985,2]
[336797220,1725163833257,-150.0,0.00012985,2]
[336797221,1725163833267,-150.0,0.00012992,2]
[336797222,1725163833277,-150.0,0.00012992,2]
[336797223,1725163833287,-736.216616,0.00012996,2]
[336797224,1725163833296,-39353.0433392,0.00012996,2]
[336797225,1725163833307,-969.2758533,0.00012996,2]
[336797226,1725163833318,-150.0,0.00012998,2]
[336797227,1725163833328,-150.0,0.00012998,2]
[336797228,1725163833339,-1217.97480628,0.00012999,2]
[336797229,1725163833349,-895.0,0.00013,2]
[336797230,1725163833359,-185215.26019178,0.00013,2]
[336797232,1725163837834,-307.05046991,0.00012996,2]
[336797233,1725163837847,-712.43225591,0.00012996,2]
[336797234,1725163837858,-1164.70230848,0.00012996,2]
[336797235,1725163837867,-26489.29769152,0.00013,2]
[336797236,1725163837879,-2724.76897987,0.00013,2]
[336797237,1725163837940,-4236.72490095,0.00013,2]
[336797238,1725163837951,-686.50000001,0.00013,2]
[336797239,1725163837962,-1495.67112458,0.00013,2]
[336797240,1725163837993,-4313.65246274,0.00013,2]
[336797241,1725163838005,-1000.4725,0.00013,2]
[336797242,1725163838015,-2549.55900004,0.00013,2]
[336797243,1725163838026,-1605.98,0.00013,2]
[336797244,1725163838037,-6157.08148719,0.00013,2]
[336797361,1725163839831,-462.7030002,0.00013,2]
[336797362,1725163839886,-374.07477111,0.00013,2]
[336797363,1725163839940,-5719.53545259,0.00013,2]
[336797364,1725163840100,-4285.7862628,0.00013,2]
[336797370,1725163842783,-1217.50675063,0.00013,2]
[336797427,1725163843780,-508.350001,0.00013,2]
[336797429,1725163843796,-598.13711454,0.00013,2]
[336797431,1725163843807,-263.26238563,0.00013,2]
[336797434,1725163843818,-1433.76304378,0.00013,2]
[336797435,1725163843830,-2564.133,0.00013,2]
[336797440,1725163843866,-189354.82530455,0.00013,2]
[336797442,1725163843875,-854.0,0.00013,2]
[336797444,1725163843885,-902709.86950394,0.00013,2]
[336797446,1725163843895,-277.0,0.00013,2]
[336797448,1725163843904,-247911.6544695,0.00013,2]
[336797450,1725163843915,-1545129.34286378,0.00013,2]
[336797459,1725163845784,-695.19249147,0.000129,2]
[336797460,1725163845795,-500.0,0.000129,2]
[336797461,1725163845839,-937.30547294,0.000129,2]
[336797462,1725163845894,-433.9560001,0.000129,2]
[336797463,1725163845905,-278.37883001,0.000129,2]
[336797464,1725163846029,-2392.56603869,0.000129,2]
[336797465,1725163846039,-1586.71544617,0.00013,2]
[336797466,1725163922902,522.86,0.00010087,2]
[336797468,1725164404634,560.8,9.966e-05,2]
[336797469,1725164470016,150.0,0.00010959,2]
[336797470,1725164470037,3.41,0.00010959,2]
[336797472,1725164608505,200.0,0.00023999,120]
[336797473,1725164708429,3715.18474377,0.0001099,2]
[336797475,1725164879550,150.0,0.0001,2]
[336797476,1725164879569,150.0,0.0001,2]
[336797477,1725164879588,150.0,0.0001,2]
[336797478,1725164879607,150.0,0.0001,2]
[336797479,1725164879625,150.0,0.0001,2]
[336797480,1725164879645,150.0,0.0001,2]
[336797481,1725164879665,150.0,0.0001,2]
[336797482,1725164879685,150.0,0.0001,2]
[336797483,1725164879704,150.0,0.0001,2]
[336797484,1725164879723,150.0,0.0001,2]
[336797485,1725164879743,150.0,0.0001,2]
[336797486,1725164879762,76.43840642,0.0001,2]
[336797487,1725164882979,-238.64871812,0.00011,2]
[336797488,1725164883326,-238.64871812,0.00011,2]
[336797489,1725164883567,-238.64871812,0.00011,2]
[336797490,1725164883904,-238.64871812,0.00011,2]
[336797491,1725164884117,-238.64871812,0.00011,2]
[336797492,1725164884328,-238.64871812,0.00011,2]
[336797493,1725164884541,-238.64871812,0.00011,2]
[336797494,1725164884878,-238.64871812,0.00011,2]
[336797495,1725164885224,-238.64871812,0.00011,2]
[336797496,1725164885412,-238.64871812,0.00011,2]
[336797497,1725164885609,-238.64871812,0.00011,2]
[336797498,1725164885803,-238.64871812,0.00011,2]
[336797499,1725164886008,-238.64871812,0.00011,2]
[336797500,1725164886203,-238.64871812,0.00011,2]
[336797501,1725164886475,-238.64871812,0.00011,2]
[336797502,1725164887450,-238.64871812,0.00011,2]
[336797503,1725164887542,-150.0,0.00011,2]
[336797504,1725164887580,-150.0,0.00011,2]
[336797505,1725164887648,-150.0,0.00011,2]
[336797506,1725164887704,-150.0,0.00011,2]
[336797507,1725164887751,-150.0,0.00011,2]
[336797508,1725164887805,-150.0,0.00011,2]
[336797509,1725164887864,-150.0,0.00011,2]
[336797510,1725164887911,-150.0,0.00011,2]
[336797511,1725164887970,-238.64871812,0.00011,2]
[336797512,1725164888036,-150.0,0.00011,2]
[336797513,1725164890868,-150.0,0.00011,2]
[336797514,1725164891008,-150.0,0.00011,2]
[336797515,1725164891052,-150.0,0.00011,2]
[336797516,1725164891161,-150.0,0.00011,2]
[336797517,1725164891252,-150.0,0.00011,2]
[336797518,1725164891293,-150.0,0.00011,2]
[336797519,1725164891342,-212.57676808,0.00011,2]
[336797520,1725164891423,-150.0,0.00011,2]
[336797521,1725164891480,-150.0,0.00011,2]
[336797522,1725164912313,331.42310192,0.00010999,2]
[336797523,1725164912345,500.0,0.00010999,2]
[336797524,1725164912374,500.0,0.00010999,2]
[336797525,1725164912406,500.0,0.00010999,2]
[336797526,1725164912458,455.04305732,0.00010999,2]
[336797527,1725164917665,64416.98581007,0.00011,2]
[336797529,1725164927747,1000.0,0.00022,60]
[336797530,1725164938131,21615.44244568,0.000109,2]
[336797534,1725164950595,-4697.87203224,0.00011,2]
[336797536,1725164950628,-4697.87203224,0.00011,2]
[336797538,1725164950672,-3084.74398598,0.00011,2]
[336797544,1725164988328,610.02,9.546e-05,2]
[336797545,1725164989480,721.04,0.000109,2]
[336797546,1725164990981,318.91608971,0.000109,2]
[336797547,1725165017924,541.05886675,0.000109,2]
[336797553,1725165031873,-1000.0,0.0001099,2]
[336797555,1725165031883,-2235.93611025,0.0001099,2]
[336797556,1725165031894,-460.59415606,0.0001099,2]
[336797557,1725165031985,-1536.69297289,0.0001099,2]
[336797558,1725165031996,-1296.1257819,0.0001099,2]
[336797563,1725165037996,-300.0,0.00010999,2]
[336797564,1725165038006,-150.0,0.00010999,2]
[336797565,1725165038015,-6154.39732132,0.00011,2]
[336797566,1725165038061,-623.44199861,0.00011,2]
[336797567,1725165038072,-679.27995712,0.00011,2]
[336797568,1725165038183,-427.20419193,0.00011,2]
[336797569,1725165038194,-1692.85057735,0.00011,2]
[336797570,1725165038333,-675.79378511,0.00011,2]
[336797571,1725165038345,-1332.05846622,0.00011,2]
[336797610,1725165038762,-5963.3,0.00011,2]
[336797665,1725165039954,-988.18501708,0.00011,2]
[336797668,1725165039966,-1594.44684523,0.00011,2]
[336797669,1725165039977,-529.40471359,0.00011,2]
[336797670,1725165040059,-38845.77453441,0.00011,2]
[336797671,1725165040077,-1370.7037282,0.00011,2]
[336797672,1725165040131,-6334.48037121,0.00011,2]
[336797673,1725165040191,-167514.43263945,0.00011,2]
[336797674,1725165040202,-83097.18480684,0.00011,2]
[336797675,1725165040213,-26941.28639219,0.00011,2]
[336797676,1725165040224,-339709.86079407,0.00011,2]
[336797677,1725165040296,-939.4090872,0.00011,2]
[336797678,1725165040322,-1531.85830089,0.00011,2]
[336797679,1725165040333,-1180.22303273,0.00011,2]
[336797774,1725165042911,-940.096497,0.00011,2]
[336797775,1725165042969,-1230.60219376,0.00011,2]
[336797776,1725165042980,-275.18000013,0.00011,2]
[336797777,1725165043027,-463.29586362,0.00011,2]
[336797778,1725165043038,-6246.50973598,0.00011,2]
[336797779,1725165043050,-3664.0000002,0.00011,2]
[336797780,1725165043098,-7411.98656928,0.00011,2]
[336797793,1725165043431,-426.5388879,0.00011,2]
[336797796,1725165043454,-1919.52883686,0.00011,2]
[336797800,1725165043476,-610993.48090481,0.00011,2]
[336797935,1725165046207,-313.06330969,0.00011,2]
[336797936,1725165046268,-2777.09675938,0.00011,2]
[336797937,1725165046287,-20944.7951398,0.00011,2]
[336797938,1725165046309,-3854.16700004,0.00011,2]
[336797939,1725165046321,-5886.8478948,0.00011,2]
[336797941,1725165097052,179.94,0.00010959,2]
[336797942,1725165216612,345.27852629,0.00010905,2]
[336797943,1725165220526,932.3442,0.00010899,2]
[336797944,1725165249841,5049.11499808,0.00010905,2]
[336797945,1725165258932,328.44997613,0.00010905,2]
[336797946,1725165266519,174.76393068,0.00010899,2]
[336797948,1725165327957,20000.0,0.0001,2]
[336797949,1725165343093,169.14363358,0.00010901,2]
[336797950,1725165348482,230.18568418,0.00010901,2]
[336797951,1725165378055,169.14363358,0.00010901,2]
[336797952,1725165379135,169.66162644,0.00010901,2]
[336797953,1725165384983,4187.71452852,0.00010901,2]
[336797954,1725165416426,328.44997613,0.00010901,2]
[336797955,1725165453527,19470.14148858,0.000109,2]
[336797956,1725165479432,153.4571228,0.000109,2]
[336797957,1725165486270,652.12,9.074e-05,2]
[336797958,1725165522340,3339.5682611,0.000109,2]
[336797959,1725165561520,328.44997613,0.000109,2]
[336797960,1725165573455,162.24,0.00010959,2]
[336797961,1725165640441,169.14363358,0.000109,2]
[336797962,1725165659459,2591.55122434,0.000109,2]
[336797963,1725165682267,4000.0,0.000109,2]
[336797964,1725165683692,720.59,0.00010967,2]
[336797965,1725165699610,328.44997613,0.000109,2]
[336797972,1725165770656,250.0,0.00010959,2]
[336797973,1725165784402,362.64985669,0.00010891,2]
[336797974,1725165785303,640.0,0.00010918,2]
[336797975,1725165789568,250.0,0.00010925,2]
[336797976,1725165797121,1971.14907196,0.000109,2]
[336797977,1725165808376,200.0,0.00023999,120]
[336797978,1725165809930,250.0,0.00010719,2]
[336797979,1725165813182,200.0,0.00010728,2]
[336797980,1725165825288,328.44997613,0.000109,2]
[336797982,1725165878239,169.14363358,0.000109,2]
[336797984,1725165932288,1476.39821848,0.000109,2]
[336797985,1725165940334,328.44997613,0.000109,2]
[336797986,1725165944349,170.15,8.946e-05,2]
[336797987,1725165970531,17555.61391455,0.000109,2]
[336797989,1725166023560,690.8,9.264e-05,2]
[336797990,1725166067453,1092.46470376,0.000109,2]
[336797992,1725166082206,169.15,0.00010959,2]
[336797993,1725166108537,169.14363358,0.000109,2]
[336797994,1725166204908,800.44261902,0.000109,2]
[336798005,1725166232042,-150.0,0.00010986,2]
[336798006,1725166232051,-155.46,0.00010996,2]
[336798007,1725166232061,-150.0,0.00010999,2]
[336798008,1725166232071,-300.0,0.00010999,2]
[336798009,1725166232081,-500.0,0.00010999,2]
[336798010,1725166232092,-324.12840728,0.00010999,2]
[336798011,1725166232102,-471.58178596,0.00010999,2]
[336798012,1725166232111,-281834.76003187,0.00011,2]
[336798013,1725166232125,-3826.9705267,0.00011,2]
[336798014,1725166232137,-6711.6690285,0.00011,2]
[336798015,1725166232149,-349.70936002,0.00011,2]
[336798016,1725166232160,-592.78,0.00011,2]
[336798017,1725166232172,-493.5770007,0.00011,2]
[336798018,1725166232183,-264.82796935,0.00011,2]
[336798019,1725166232204,-577.08950482,0.00011,2]
[336798020,1725166232215,-1670.90790627,0.00011,2]
[336798021,1725166232699,-1757.76879465,0.00011,2]
[336798022,1725166232715,-15432.30506371,0.00011,2]
[336798023,1725166232725,-12552.98142732,0.00011,2]
[336798024,1725166232736,-909.3594811,0.00011,2]
[336798025,1725166232746,-3869.0471706,0.00011,2]
[336798026,1725166232757,-15739.85359747,0.00011,2]
[336798027,1725166232779,-2972.05864346,0.00011,2]
[336798029,1725166238120,-153.25791357,0.00010997,2]
[336798030,1725166238130,-734.24208643,0.00011,2]
[336798031,1725166238541,-66516.92825551,0.00011,2]
[336798032,1725166238552,-719.45,0.00011,2]
[336798033,1725166238564,-666.4,0.00011,2]
[336798034,1725166238577,-500.0,0.00011,2]
[336798035,1725166238596,-2510.72,0.00011,2]
[336798036,1725166238607,-1733.45721338,0.00011,2]
[336798037,1725166238620,-300.001004,0.00011,2]
[336798038,1725166238634,-542.99403541,0.00011,2]
[336798039,1725166238645,-288.35902881,0.00011,2]
[336798040,1725166238658,-53293.60663855,0.00011,2]
[336798042,1725166238669,-326.45,0.00011,2]
[336798043,1725166238680,-284.16954793,0.00011,2]
[336798044,1725166238698,-443.13092382,0.00011,2]
[336798045,1725166238758,-2249181.13780303,0.00011,2]
[336798046,1725166238767,-12090.79670244,0.00011,2]
[336798047,1725166238776,-360.0,0.00011022,2]
[336798048,1725166238784,-1521.71765,0.0001105,2]
[336798050,1725166238793,-1521.71766,0.0001111,2]
[336798052,1725166238802,-440.05,0.00011135,2]
[336798054,1725166238811,-23900.0,0.00011142,2]
[336798056,1725166238820,-169.75,0.00011157,2]
[336798058,1725166238830,-1500.0,0.00011171,2]
[336798060,1725166238839,-173.1,0.00011178,2]
[336798062,1725166238847,-1521.71765,0.0001119,2]
[336798064,1725166238857,-1521.71766,0.0001127,2]
[336798066,1725166238866,-1521.71765,0.0001134,2]
[336798068,1725166238876,-359.0,0.00011352,2]
[336798070,1725166238885,-359.0,0.00011355,2]
[336798072,1725166238894,-359.0,0.00011357,2]
[336798074,1725166238903,-359.0,0.0001136,2]
[336798076,1725166238913,-359.0,0.00011363,2]
[336798078,1725166238923,-359.0,0.00011366,2]
[336798080,1725166238933,-359.0,0.00011369,2]
[336798082,1725166238942,-359.0,0.00011372,2]
[336798084,1725166238951,-359.0,0.00011375,2]
[336798086,1725166238960,-359.0,0.00011378,2]
[336798088,1725166238970,-359.0,0.00011381,2]
[336798090,1725166238979,-359.0,0.00011384,2]
[336798092,1725166238987,-359.0,0.00011387,2]
[336798094,1725166238996,-359.0,0.0001139,2]
[336798096,1725166239006,-359.0,0.00011393,2]
[336798098,1725166239015,-359.0,0.00011396,2]
[336798100,1725166239024,-359.0,0.00011399,2]
[336798102,1725166239033,-359.0,0.00011402,2]
[336798104,1725166239042,-359.0,0.00011405,2]
[336798106,1725166239051,-359.0,0.00011408,2]
[336798107,1725166239060,-1521.71766,0.0001142,2]
[336798109,1725166239069,-171.55,0.00011507,2]
[336798111,1725166239079,-178.72,0.00011512,2]
[336798114,1725166239088,-690.8,0.00011528,2]
[336798116,1725166239097,-167.03,0.00011607,2]
[336798118,1725166239106,-205.94,0.00011677,2]
[336798119,1725166239116,-163.38,0.00011797,2]
[336798121,1725166239125,-163.38,0.00011856,2]
[336798123,1725166239134,-800.442619,0.000119,2]
[336798125,1725166239143,-4252.25609245,0.00012,2]
[336798127,1725166239153,-420.0,0.00012087,2]
[336798129,1725166239162,-930.0,0.00012233,2]
[336798131,1725166239172,-640.0,0.00012283,2]
[336798133,1725166239181,-17555.61391454,0.00012296,2]
[336798135,1725166239190,-360.0,0.000124,2]
[336798137,1725166239200,-173.1,0.00012575,2]
[336798139,1725166239210,-1959.0,0.000126,2]
[336798141,1725166239219,-2232.2437,0.000128,2]
[336798143,1725166239228,-624.644,0.000128,2]
[336798145,1725166239237,-448.198,0.000128,2]
[336798147,1725166239247,-500.0,0.00012896,2]
[336798149,1725166239257,-800.442619,0.000129,2]
[336798151,1725166239266,-150.0,0.00012905,2]
[336798153,1725166239275,-1006.92,0.00012916,2]
[336798154,1725166239285,-1006.92,0.00012919,2]
[336798156,1725166239295,-1006.92,0.00012922,2]
[336798158,1725166239304,-1006.92,0.00012926,2]
[336798160,1725166239313,-1006.92,0.00012929,2]
[336798162,1725166239323,-1006.92,0.00012933,2]
[336798164,1725166239335,-1006.92,0.00012936,2]
[336798166,1725166239345,-1006.92,0.00012939,2]
[336798168,1725166239354,-1006.92,0.00012943,2]
[336798170,1725166239363,-1006.92,0.00012946,2]
[336798172,1725166239372,-1006.92,0.0001295,2]
[336798174,1725166239381,-1006.92,0.00012953,2]
[336798176,1725166239391,-1006.92,0.00012956,2]
[336798178,1725166239399,-1006.92,0.0001296,2]
[336798180,1725166239409,-1006.92,0.00012963,2]
[336798182,1725166239418,-1006.92,0.00012967,2]
[336798184,1725166239427,-1006.92,0.0001297,2]
[336798186,1725166239436,-1006.92,0.00012973,2]
[336798188,1725166239446,-1006.92,0.00012977,2]
[336798190,1725166239456,-1006.92,0.0001298,2]
[336798192,1725166239466,-354.424876,0.00012996,2]
[336798194,1725166239475,-5401.8658689,0.00012996,2]
[336798196,1725166239485,-153.25791357,0.00012997,2]
[336798198,1725166239494,-578.10663931,0.00012999,2]
[336798200,1725166239503,-1000.0,0.00012999,2]
[336798202,1725166239513,-1000.0,0.00012999,2]
[336798204,1725166239523,-357201.08112874,0.00013,2]
[336798206,1725166239532,-4369274.65241605,0.00013,2]
[336798219,1725166239665,-1100.67125844,0.00013,2]
[336798222,1725166239677,-655.6964493,0.00013,2]
[336798224,1725166239688,-4359.03,0.00013,2]
[336798226,1725166239703,-784.64182838,0.00013,2]
[336798233,1725166239756,-13914.32402558,0.00013,2]
[336798235,1725166239767,-717.96206054,0.00013,2]
[336798277,1725166240146,-1124.02077438,0.00013,2]
[336798280,1725166240158,-1194.05,0.00013,2]
[336798282,1725166240169,-111742.50435818,0.00013,2]
[336798284,1725166240180,-6102.1638032,0.00013,2]
[336798286,1725166240191,-2926.4020911,0.00013,2]
[336798289,1725166240208,-11384.66755912,0.00013,2]
[336798290,1725166240219,-1729.84999999,0.00013,2]
[336798296,1725166240262,-578.60900341,0.00013,2]
[336798303,1725166240323,-1646.87646467,0.00013,2]
[336798305,1725166240334,-376.955934,0.00013,2]
[336798307,1725166240346,-4608.07243216,0.00013,2]
[336798312,1725166240379,-7701.58319048,0.00013,2]
[336798314,1725166240390,-2724.18157788,0.00013,2]
[336798320,1725166240438,-644.08472678,0.00013,2]
[336798604,1725166243522,-715.36994382,0.00013,2]
[336798609,1725166243540,-1255.06367634,0.00013,2]
[336798611,1725166243551,-653.44587086,0.00013,2]
[336798613,1725166243561,-24856.3089465,0.00013,2]
[336798615,1725166243576,-2904.46139106,0.00013,2]
[336798617,1725166243587,-471.58178596,0.00013,2]
[336798620,1725166243605,-831.48450349,0.00013,2]
[336798683,1725166244306,-324.57647448,0.00013,2]
[336798685,1725166244317,-1570.55517767,0.00013,2]
[336798687,1725166244327,-1599.08934919,0.00013,2]
[336798689,1725166244338,-873.04153788,0.00013,2]
[336798691,1725166244349,-985.07438389,0.00013,2]
[336798694,1725166244359,-455.37695136,0.00013,2]
[336798696,1725166244370,-748.63230573,0.00013,2]
[336798698,1725166244381,-3700.884,0.00013,2]
[336798700,1725166244391,-1003340.38455846,0.00013,2]
[336798702,1725166244402,-286.93626806,0.00013,2]
[336798704,1725166244412,-15164.0268957,0.00013,2]
[336798707,1725166244427,-4783.44655774,0.00013,2]
[336798709,1725166244438,-427.18428536,0.00013,2]
[336798711,1725166244448,-537.88,0.00013,2]
[336798714,1725166244459,-768.44720034,0.00013,2]
[336798716,1725166244470,-3633.35289937,0.00013,2]
[336798718,1725166244481,-931.13278959,0.00013,2]
[336798891,1725166246087,-7533.79919372,0.00013,2]
[336798895,1725166246117,-4378.21162704,0.00013,2]
[336798897,1725166246128,-3666.82998998,0.00013,2]
[336798903,1725166246173,-22015.21942346,0.00013,2]
[336798906,1725166246184,-1740.74654837,0.00013,2]
[336798908,1725166246195,-430.18684934,0.00013,2]
[336798913,1725166246240,-12135.87654505,0.00013,2]
[336798915,1725166246252,-5143.26,0.00013,2]
[336798922,1725166246301,-1580.85761632,0.00013,2]
[336798924,1725166246312,-1421.4756318,0.00013,2]
[336798926,1725166246323,-2438.53564919,0.00013,2]
[336798928,1725166246334,-1000.54103258,0.00013,2]
[336798930,1725166246345,-474.70594152,0.00013,2]
[336798932,1725166246356,-2227.32105604,0.00013,2]
[336798933,1725166246367,-553.56974129,0.00013,2]
[336798934,1725166246377,-29900.94388131,0.00013,2]